Cogmind - Beta 16.1 @@@ ROGUE MODE // 2026.02.20 @ 00:53:20 Player: Puck Result: Destroyed by 4C-RHS(R) with Subdweller Laser Performance ------------- Evolutions (0) 0 Regions Visited (3) 600 Robots Destroyed (32) 160 Value Destroyed (782) 782 Prototype IDs (13) 260 Alien Tech Used (0) 0 Bonus (0) 0 TOTAL SCORE: 1802 Bonus ------- None Cogmind --------- Core Integrity 0/250 Matter 275/300 Energy 265/265 System Corruption 0% Temperature Cool (6) Movement Rolling (130) Ox2 Location -10/Subcaves Parts ------- > --- POWER (1) -------- Improved Ion Engine > --- PROPULSION (2) --- Subdweller Monowheel Subdweller Monowheel > --- UTILITY (2) ------ Heat Sink Huge Storage Unit > --- WEAPON (2) ------- Subdweller Beam Cannon Battle Cannon > --- INVENTORY (25) --- Aluminum Leg Subdweller Monowheel Subdweller Monowheel High-capacity Battery (250) Medium Matter Pod (100) Structural Scanner Subdweller Optics Beam Cannon Subdweller Beam Cannon Rocket Launcher Mining Laser Peak State ------------ > --- POWER ------------ Subdweller Power Source Light Nuclear Core > --- PROPULSION ------- Wheel Compact Wheel Compact Wheel Compact Wheel > --- UTILITY ---------- Heat Sink Huge Storage Unit Tower Shield > --- WEAPON ----------- Assault Rifle Light Assault Rifle Light Assault Rifle Battle Cannon > --- INVENTORY -------- Light Ion Engine Light Treads Aluminum Leg High-capacity Battery Medium Matter Pod Structural Scanner Beam Cannon Subdweller Beam Cannon Light Cannon Light Cannon Rocket Launcher Mining Laser [Rating: 37] Favorites ----------- Power Subdweller Power Source Engine Subdweller Power Source Power Core Light Nuclear Core Propulsion Compact Wheel Leg Aluminum Leg Wheel Compact Wheel Utility Huge Storage Unit Device Heat Sink Storage Huge Storage Unit Processor Signal Interpreter Protection Tower Shield Weapon Light Cannon Energy Cannon Subdweller Beam Cannon Ballistic Gun Light Assault Rifle Ballistic Cannon Light Cannon Build | -11 -10 -10 -10 ------- Run | Yrd Mat Min Sub Slots Evolved . | . . . . Power . | . . . . Propulsion . | . . . . Utility . | . . . . Weapon . | . . . . Parts Attached 30 | 5 7 6 12 Power 5 | 1 . 1 3 Engine 4 | 1 . . 3 Core 1 | . . 1 . Reactor . | . . . . Propulsion 11 | 2 2 2 5 Treads . | . . . . Leg 2 | 2 . . . Wheel 9 | . 2 2 5 Hover . | . . . . Flight . | . . . . Utility 6 | . 3 2 1 Device 1 | . 1 . . Storage 2 | . 2 . . Processor 1 | . . 1 . Hackware . | . . . . Protection 2 | . . 1 1 Artifact . | . . . . Weapon 8 | 2 2 1 3 Energy Gun . | . . . . Energy Cannon 1 | . . . 1 Ballistic Gun 4 | 2 . . 2 Ballistic Cannon 3 | . 2 1 . Launcher . | . . . . Special Weapon . | . . . . Impact Weapon . | . . . . Slashing Weapon . | . . . . Piercing Weapon . | . . . . Special Melee Weapon . | . . . . Unidentified Prototypes . | . . . . Parts Lost 12 | . . 3 9 Power 2 | . . 1 1 Propulsion 4 | . . 1 3 Utility 2 | . . 1 1 Weapon 4 | . . . 4 Highest Loss Streak 4 | . . 1 4 To Critical Strikes . | . . . . Average Backups 12 | . 7 16 13 Power . | . . 1 . Propulsion 3 | . 2 4 3 Utility 3 | . 2 5 3 Weapon 4 | . 1 5 5 Tool/Special . | . . . . Unused Backups 17 | . . . 17 Power 2 | . . . 2 Propulsion 4 | . . . 4 Utility 6 | . . . 6 Weapon 5 | . . . 5 Tool/Special . | . . . . Average Slot Usage (%) 89 | . 91 90 89 Engine 11 | . 14 8 11 Core 2 | . . 4 1 Leg 2 | . 10 . . Wheel 24 | . 17 24 26 Device 6 | . 11 4 4 Storage 11 | . 8 14 12 Protection 1 | . . 3 1 Energy Cannon 1 | . . . 2 Ballistic Gun 13 | . 9 . 19 Ballistic Cannon 13 | . 18 28 6 Peak Build Rating 37 | 5 8 11 37 Average Rating 13 | 3 6 8 17 On Entrance 6 | . 5 8 11 Avg Prop Armor Cover (%) . | . . . . Naked Turns . | . . . . Heaviest Build 136 | 8 92 94 136 Greatest Support 58 | 20 20 32 58 Greatest Overweight (x) 9 | . 4 9 5 Average Overweight (x) 2 | . 2 3 2 Largest Inventory Capacity 25 | 5 25 25 25 Average Capacity 22 | 5 16 25 24 Most Carried 25 | . 15 19 25 Average Carried 12 | . 7 16 13 Final Capacity 25 | 5 25 25 25 Final Carried 17 | . 15 17 11 Class Distribution -------------------- 69% | Mutant 17% | Scavenger-Mutant 13% | Scavenger-Gunner Dominant Class ---------------- Mutant | -10/Materials Mutant | -10/Mines Mutant | -10/Subcaves Resources | -11 -10 -10 -10 ----------- Run | Yrd Mat Min Sub Matter Collected 1384 | 138 389 282 575 Remotely . | . . . . Salvage Created 965 | . 439 153 373 Parts 58 | . 29 7 22 Haulers Intercepted 1 | . 1 . . Recyclers Shooed 1 | . 1 . . Parts Field Recycled . | . . . . Retrieved Matter . | . . . . Parts Self-Destructed 5 | . . . 5 Prevented . | . . . . Parts Restored . | . . . . Kills | -11 -10 -10 -10 ------- Run | Yrd Mat Min Sub Combat Hostiles Destroyed 21 | . 5 6 10 Guns 7 | . 2 . 5 Cannons 14 | . 3 6 5 Classes Destroyed 8 | . 6 . 2 Worker 3 | . 3 . . Hauler 1 | . 1 . . Recycler 4 | . 3 1 . Watcher 3 | . 3 . . Swarmer 5 | . 3 2 . Grunt 6 | . 2 4 . Sentry 1 | . . . 1 Subdweller 9 | . . . 9 Best Kill Streak 3 | . 2 2 3 Combat Bots Only 3 | . 1 2 3 Max Kills in Single Turn 2 | . 2 1 1 Gunslinging . | . . . . Exploded . | . . . . Melee . | . . . . Uniques/NPCs Destroyed . | . . . . Combat | -11 -10 -10 -10 -------- Run | Yrd Mat Min Sub Hostile Shots Fired 133 | . 45 25 63 Missed 31 | . 9 4 18 Hits 102 | . 36 21 45 Projectile 102 | . 36 21 45 AOE 1 | . . . 1 Critical Strikes 2 | . . 1 1 Damage Taken 1639 | . 306 282 1051 Core 260 | . 67 37 156 Absorbed by Shields . | . . . . Core Remaining (%) 100 | 100 . . . Volleys Fired 115 | . 40 25 50 Largest 4 | . 2 2 4 Hottest 113 | . 60 60 113 Shots Fired 237 | . 80 50 107 Gun 99 | . 32 . 67 Cannon 138 | . 48 50 40 Launcher . | . . . . Special . | . . . . Kinetic 220 | . 80 50 90 Thermal 17 | . . . 17 Explosive . | . . . . Electromagnetic . | . . . . Robot Hit Streak 12 | . 5 11 12 Robot Miss Streak 7 | . 7 3 2 Penetration Max . | . . . . Secondary Targets 2 | . . . 2 Max Gunslinging Chain 1 | . . . 1 Shots Hit Robots 142 | . 37 30 75 Core Hits 49 | . 19 10 20 Critical Kills 1 | . 1 . . Critical Parts Destroyed . | . . . . Critical Strikes 2 | . 1 1 . Destroy 1 | . 1 . . Blast 1 | . . 1 . Melee Attacks . | . . . . Impact . | . . . . Slashing . | . . . . Piercing . | . . . . Sneak Attacks . | . . . . Combat Hostiles . | . . . . Follow-up Attacks . | . . . . Damage Inflicted 2172 | . 549 536 1087 Guns 893 | . 221 . 672 Cannons 1279 | . 328 536 415 Explosions . | . . . . Melee . | . . . . Ramming . | . . . . Kinetic 2036 | . 549 536 951 Thermal 136 | . . . 136 Explosive . | . . . . Electromagnetic . | . . . . Impact . | . . . . Slashing . | . . . . Piercing . | . . . . Highest Corruption . | . . . . Average Corruption . | . . . . Corruption Purged . | . . . . Corruption Blocked . | . . . . Overload Shots . | . . . . Overflow Damage . | . . . . Projectiles . | . . . . Explosions . | . . . . Melee . | . . . . Knockbacks 11 | . 1 6 4 Impact . | . . . . Kinetic 11 | . 1 6 4 Secondary . | . . . . Self-Inflicted Damage . | . . . . Shots . | . . . . Rammed . | . . . . Targets Rammed . | . . . . Kicked . | . . . . Crushed . | . . . . Highest Temperature 105 | . 6 105 . Average Temperature 43 | . 6 46 . Received Heat Transfer 459 | . 30 174 255 Siege Activations . | . . . . Martial Activations . | . . . . Shielding Activations . | . . . . Robots Disrupted . | . . . . Combat Hostiles . | . . . . Robots Corrupted . | . . . . Combat Hostiles . | . . . . Parts Fried . | . . . . Impact Corruptions . | . . . . Robots Melted . | . . . . Combat Hostiles . | . . . . Parts Melted 1 | . . . 1 Heat Transferred 185 | . . . 185 Parts Sabotaged . | . . . . Parts Stolen . | . . . . Parts Stripped . | . . . . Power Chain Reactions . | . . . . Alert | -11 -10 -10 -10 ------- Run | Yrd Mat Min Sub Maximum Alert Level . | . . . . Low Security (%) 100 | 100 100 100 . Level 1 . | . . . . Level 2 . | . . . . Level 3 . | . . . . Level 4 . | . . . . Level 5 . | . . . . High Security . | . . . . Max Security . | . . . . Peak Influence 93 | . 93 75 . Initial 6 | . . 6 . Average 26 | . 31 23 . Influence Increases 478 | . 258 200 20 Destroy 0b10 Robot/C 240 | . 100 120 20 Destroy 0b10 Robot/NC 55 | . 50 5 . Destroy Leader 48 | . 18 30 . Successful Hack 15 | . 15 . . Disable Machine 30 | . 15 15 . Lose Combat Pursuer 90 | . 60 30 . Influence Decreases 478 | . 240 218 20 Entered New Map 12 | . . 12 . Time Decay 446 | . 240 186 20 Lost Part 20 | . . 20 . Squads Dispatched . | . . . . Investigation . | . . . . Extermination . | . . . . Reinforcement . | . . . . Assault . | . . . . Garrison . | . . . . Intercept . | . . . . Searches Triggered . | . . . . Construction Impeded . | . . . . Haulers Reinforced . | . . . . Active Scanning Responses . | . . . . Cargo Convoy Interrupts . | . . . . Stealth | -11 -10 -10 -10 --------- Run | Yrd Mat Min Sub Distress Signals 2 | . 2 . . Communications Jammed . | . . . . Distress Signals . | . . . . Times Spotted 36 | . 15 9 12 Peak Tracking Total 4 | . 4 2 2 Tactical Retreats 5 | . 3 2 . Traps | -11 -10 -10 -10 ------- Run | Yrd Mat Min Sub Traps Triggered . | . . . . Indirectly . | . . . . Trap Hack Attempts . | . . . . Triggered . | . . . . Disarmed . | . . . . Reprogrammed . | . . . . Reused . | . . . . Traps Extracted . | . . . . Installed . | . . . . Triggered . | . . . . Machines | -11 -10 -10 -10 ---------- Run | Yrd Mat Min Sub Machines Disabled 3 | . 1 1 1 Max in Single Turn 1 | . 1 1 1 Machines Repaired . | . . . . Machines Dismantled . | . . . . Machines Sabotaged . | . . . . Overloaded Fab Kills . | . . . . Hacking | -11 -10 -10 -10 --------- Run | Yrd Mat Min Sub Machines Accessed 5 | . 4 . 1 Terminals 4 | . 4 . . Fabricators . | . . . . Repair Stations . | . . . . Recycling Units . | . . . . Scanalyzers . | . . . . Garrison Access . | . . . . Total Hacks 23 | . 14 . 9 Successful 16 | . 7 . 9 Failed 7 | . 7 . . Catastrophic . | . . . . Database Lockouts . | . . . . Manual 6 | . 6 . . Terminals 14 | . 14 . . Fabricators . | . . . . Repair Stations . | . . . . Recycling Units . | . . . . Scanalyzers . | . . . . Garrison Access . | . . . . Terminal Hacks 16 | . 7 . 9 Record 8 | . . . 8 Robot Analysis 4 | . 4 . . Locate Traps 2 | . 2 . . Zone Layout 1 | . 1 . . Proto ID Catalog 1 | . . . 1 Fabricator Hacks . | . . . . Repair Station Hacks . | . . . . Recycling Unit Hacks . | . . . . Scanalyzer . | . . . . Garrison Access Hacks . | . . . . Unauthorized Hacks . | . . . . Terminals . | . . . . Fabricators . | . . . . Repair Stations . | . . . . Recycling Units . | . . . . Scanalyzers . | . . . . Garrison Access . | . . . . Data Cores Recovered . | . . . . Used . | . . . . Hacking Detections 4 | . 4 . . Full Trace Events . | . . . . Feedback Events . | . . . . Feedback Blocked . | . . . . Robot Schematics Acquired . | . . . . Robots Built . | . . . . Authchips . | . . . . Time . | . . . . Total Robot Build Rating . | . . . . Part Schematics Acquired . | . . . . Parts Built . | . . . . Authchips . | . . . . Time . | . . . . Total Part Build Rating . | . . . . Part Studies Acquired . | . . . . Parts Repaired . | . . . . Time . | . . . . Parts Recycled . | . . . . Recycled Matter . | . . . . Retrieved Matter . | . . . . Retrieved Components . | . . . . Parts Scanalyzed . | . . . . Part Schematics Acquired . | . . . . Parts Damaged . | . . . . Bothacking | -11 -10 -10 -10 ------------ Run | Yrd Mat Min Sub Used RIF Installer . | . . . . Robots Hacked . | . . . . Non-combat . | . . . . Combat . | . . . . Robot Hacks Applied . | . . . . Relay Couplers Released . | . . . . Fabnet Peak Effective % . | . . . . Robots Rewired . | . . . . Allies Hacked . | . . . . Hacks Repelled . | . . . . Allies | -11 -10 -10 -10 -------- Run | Yrd Mat Min Sub Total Allies . | . . . . Largest Group . | . . . . Highest-Rated Group . | . . . . Highest-Rated Ally . | . . . . Total Orders . | . . . . Ally Attacks . | . . . . Total Damage . | . . . . Kills . | . . . . Allies Corrupted . | . . . . Allies Melted . | . . . . Intel | -11 -10 -10 -10 ------- Run | Yrd Mat Min Sub Active Infowar (turns) . | . . . . Robot Analysis Total 4 | . 4 . . Derelict Logs Recovered 1 | . . . 1 Drone Launches . | . . . . Drone Recoveries . | . . . . Exploration | -11 -10 -10 -10 ------------- Run | Yrd Mat Min Sub Turns Passed 3262 | 55 660 712 1835 Spaces Moved 2085 | 38 386 423 1238 Core 2 | 2 . . . Treads . | . . . . Legs 189 | 36 153 . . Wheels 1894 | . 233 423 1238 Hover . | . . . . Flight . | . . . . Fastest Speed 50 | 50 80 130 100 Average Speed 132 | 116 130 144 130 Slowest Speed 215 | 120 140 215 175 Overloaded Moves . | . . . . Propulsion Burnouts . | . . . . Robots Hopped . | . . . . Potential Cave-ins . | . . . . Cave-ins Triggered . | . . . . Exploration Rate (%) 47 | 3 58 69 59 Regions Visited 3 Branch Regions 2 Pre-discovered Areas . | . . . . Known Exits Taken 1 | . . 1 . Unknown Exits Taken 2 | 1 1 . . Scrap Searched 5 | . . 3 2 Spaces Dug . | . . . . Terrain Destroyed 1 | . . . 1 Melee . | . . . . Projectile 1 | . . . 1 AOE . | . . . . Terrain Rammed . | . . . . Walls Destroyed . | . . . . Machines Disabled . | . . . . Actions | -11 -10 -10 -10 --------- Run | Yrd Mat Min Sub Total 2357 | 46 464 471 1376 Wait 41 | 4 11 7 19 Move 2082 | 37 385 422 1238 Hop . | . . . . Pick Up 61 | . 16 7 38 Fast Attach 16 | 5 4 1 6 Attach 18 | . 2 3 13 Detach 1 | . 1 . . Swap 10 | . 2 3 5 Drop 13 | . 3 3 7 Fire 115 | . 40 25 50 Melee . | . . . . Ram . | . . . . Kick . | . . . . Crush . | . . . . Escape Stasis . | . . . . Rewire . | . . . . Trap . | . . . . Miscellaneous . | . . . . Route ------- -11/Scrapyard -10/Materials (discovered 3 exits: [*Mat x2] / [*Min]) -10/Mines (discovered 2 exits: [*Mat] / *Sub) -10/Subcaves History --------- Turn | Location | Event 6 | -11/Scrapyard | Discovered new exit (range 16) 56 | -11/Scrapyard | Entered Materials 118 | -10/Materials | Discovered new exit (range 12) 345 | -10/Materials | Build established: Mutant 541 | -10/Materials | Discovered new exit (range 16) 647 | -10/Materials | Discovered new exit (range 15) 716 | -10/Materials | Entered Mines 748 | -10/Mines | Met a Derelict bent on vengeance 858 | -10/Mines | Received a Rocket Launcher from a helpful Derelict 1216 | -10/Mines | Discovered new exit (range 6) 1242 | -10/Mines | A weapon hastily lodged in a ceiling crevice suddenly fell to the ground 1416 | -10/Mines | Discovered new exit (range 6) 1426 | -10/Mines | Identified exit to Subcaves 1428 | -10/Mines | Entered Subcaves 1531 | -10/Subcaves | Visited 4L-MR0's lab 1546 | -10/Subcaves | Found Prototype Special Melee Weapon 1551 | -10/Subcaves | Found Tower Shield 1561 | -10/Subcaves | Attached Tower Shield, gained temporary slots: Power, Propulsion x2, Utility x2, Weapon x2 1902 | -10/Subcaves | Build established: Scavenger-Gunner 1926 | -10/Subcaves | Shifting Twisted Machinery released Sub. Beam Cannon 1970 | -10/Subcaves | Shifting Twisted Machinery released Battle Rifle 2336 | -10/Subcaves | Build established: Mutant 2618 | -10/Subcaves | Learned Materials emergency access door positions 2835 | -10/Subcaves | Core integrity fell below 50% 2916 | -10/Subcaves | Build established: Scavenger-Mutant 2974 | -10/Subcaves | Ambushed by Subdweller buried in earth 3012 | -10/Subcaves | Lost 4 parts (1n3w) 3127 | -10/Subcaves | A swath of the cavern ceiling suddenly collapsed 3254 | -10/Subcaves | Core integrity fell below 20% 3263 | -10/Subcaves | Destroyed by 4C-RHS(R) with Subdweller Laser Last Messages --------------- 02977_ Com. Wheel destroyed. 02979_ G0-NMF(R) knocked back. 02981_ Lgt. Cannon destroyed. 02986_ BP-MY6(R) destroyed. 02989_ G0-NMF(R) destroyed. 02993_ Acquired 37 matter. 02996_ Acquired 10 matter. 02999_ Acquired 2 matter. A swath of the cavern ceiling suddenly collapses. 03134_ Acquired 12 matter. 03138_ Sub. Power Source shoots sparks and powers down. 03138_ Dropped Broken Sub. Power Source. 03185_ Acquired 5 matter. 03192_ JA-FLX(R) destroyed. 03204_ Acquired Sub. Monowheel. 03205_ Acquired 36 matter. 03208_ Acquired 3 matter. 03209_ Acquired 10 matter. 03250_ 4C-RHS(R) knocked back. 03256_ Sub. Beam Cannon shoots sparks and powers down. Map ----- +----------------------------------------------------+ | ????????????## ## ##?????????## | | ?????????????# ### &&##???????????## % ## | | ?????????????## ### =%##????????????## ######## | | ??????????????## # && ##????????????###??????? | | ???????????????# %## ##????????????????????? | | ???????????????# !% #????????????????????? | | ???????????????## * %#% ##???????????????????? | | ????????????????# * [ ##??????????????????? | | ??????????????? #" & & #??????????????????? | | ?????????????####""# ##& %#??????????????????? | | ?????????????#""# "##%##"# #??????????????????? | | ????????????##"""######?## #??????????????????? | | ????????????#"""#"##????## #??????????????????? | | ????????????#"""#""##??## ##?????????????????? | | ????????????###""#"%#??# #?????????????????? | | ?????????????#""#"""##?## # ##?????????????????? | | ????????????#####""""#??# ## #??????????????????? | | ?????????????# ##"#"##?## #??????????????????? | | ?????????????### #"##??#" %# #??????????????????? | | ?????????????# "#"##???# ""#% #?????????????????? | | ?????????????#""###????# "##" #?????????????????? | | ?????????????##"#??????# #?""" ????????????????? | | ??????????????###?????## "#?#"## ??????????????? | | ??????????????????????# " #??#"?? ?????????????? | | ??????????????????????## "#???""?? "" ???????????? | | ???????????????????????# @#????????" ???????????? | | ???????????????????????# ##??????????#???????????? | | ??????????????????????# " ??????????????????????? | | ?????????????????????#R"" ""????????????????????? | | ????????????????????#"""##"" ??????????????????? | | ???????????????????#" "#??# ###?????????????????? | | ???????????????????# ???? #???????????????????? | | ???????????????????##??????? ???????????????????? | | ???????????????????????????? ??????????????????? | | ?????????????????????????????%##?????????????????? | | ??????????????????????????????#??????????????????? | | ?????????????????????????????????????????????????? | | ?????????????????????????????????????????????????? | | ?????????????????????????????????????????????????? | | ?????????????????????????????????????????????????? | | ?????????????????????????????????????????????????? | | ?????????????????????????????????????????????????? | | ?????????????????????????????????????????????????? | | ?????????????????????????????????????????????????? | | ?????????????????????????????????????????????????? | | ?????????????????????????????????????????????????? | | ?????????????????????????????????????????????????? | | ?????????????????????????????????????????????????? | | ?????????????????????????????????????????????????? | | ?????????????????????????????????????????????????? | +----------------------------------------------------+ Best States ------------- Heat Dissipation 35 Energy Generation 24 Energy Capacity 265 Matter Stores 300 Matter Capacity 300 Sight Range 16 Terrain Scan Density 10 Armor Coverage 2000 Evasion (%) 55 Item Schematics ----------------- None Robot Schematics ------------------ None Fabricated ------------ Nothing Repaired ---------- Nothing Studied --------- None Alien Tech Used ----------------- None Achievements -------------- Do Not Disturb Mistaken Identity Challenges ------------ None Game ------ Seed LongswordScatterLauncher Manual? 0 Play Time 00:30:40 Cumulative 275.0 hours Start 2026.02.20 @ 00:22:07 End 2026.02.20 @ 00:53:20 Sessions 1 Manual Loads 0 Difficulty Rogue Special Mode None Game No. 132 Rogue 92 Adventurer 29 Explorer 11 Win Type - Total 12 Types 7/0/1/2/0/0/1/0/1/0 Lore% 50 Gallery% 63 Achievement% 43 Wizard Run 0 Options --------- Layout 0 ASCII 0 Keyboard 0 Movement Numpad Keybinds 0 Fullscreen 2 Font 24/Smallcaps Map View 113x50 Zoom Use 0% Tactical HUD 1 Map Filters NONE Filters LOW_CONTRAST(13,24,33) Steam 1 RUN: ae5cd50f-947f-4ccc-92dd-e76ba0b83464